{"text_format":"3","workbook":"xlsx","n_sheets":3,"sheets":["Registro de millas","Datos de registro","Cálculos"],"not_rendered":{"charts":1,"defined_names":17},"read":"whole","date_system":"1900"}

{"sheet":"Registro de millas","index":0,"n_rows":29,"n_cols":5,"rows_kept":29,"merged":[[0,1,1,4]]}
[null,"REGISTRO DE MILLAS"]
{"$rows_empty":9}
[null,null,"REEMBOLSABLE",null,"TOTAL"]
[null,null,"MILLAS",null,"REEMBOLSO"]
[]
[]
[]
[]
[null,null,"2012-05-01",null,"2012-05-10"]
[]
[null,null,"PERIODO",null,"PERIODO"]
[null,null,"INICIO",null,"FIN"]
[]
[]
[]
[]
[]
[null,null,54,null,{"v":9800,"d":"9,800"}]
[]
[null,null,"REEMBOLSO",null,"COMBUSTIBLE ANTERIOR"]
[null,null,"¢/Mile",null,"ODÓMETRO"]

{"sheet":"Datos de registro","index":1,"n_rows":19,"n_cols":15,"rows_kept":19,"merged":[[0,1,1,4]]}
[null,"REGISTRO DE MILLAS"]
[{"$nulls":14}," "]
[]
[]
[null,"FECHA","ACTIVIDAD","ODOM. 1","UBICACIÓN","ODOM. 2","DESTINO","REMBOLSAR","GALONES","COSTO","MILLAS","MPG","¢/MILE","NOTAS"]
[null,"2012-05-01","Viaje",{"v":10123,"d":"10,123"},"Chevron - Main St",{"v":10130,"d":"10,130"},null,null,15.56,{"v":64.11,"d":"64.11 €"},{"$f":"Millas","v":7},{"$f":"IF(OR(LEN(Datos[[#This Row],[ODOM. 2]]),Datos[[#This Row],[ODOM. 1]]=\"\"),\"\",IFERROR(Datos[[#This Row],[MILLAS]]/Datos[[#This Row],[GALONES]],\"\"))","v":""},{"$f":"IF(Datos[[#This Row],[MPG]]=\"\",\"\",100*Datos[[#This Row],[COSTO]]/Datos[[#This Row],[MILLAS]])","v":""}]
[null,"2012-05-01","Viaje",{"v":10130,"d":"10,130"},"Oficina",{"v":10200,"d":"10,200"},"Cherry Street","Sí",null,"",{"$f":"Millas","v":70},{"$f":"IF(OR(LEN(Datos[[#This Row],[ODOM. 2]]),Datos[[#This Row],[ODOM. 1]]=\"\"),\"\",IFERROR(Datos[[#This Row],[MILLAS]]/Datos[[#This Row],[GALONES]],\"\"))","v":""},{"$f":"IF(Datos[[#This Row],[MPG]]=\"\",\"\",100*Datos[[#This Row],[COSTO]]/Datos[[#This Row],[MILLAS]])","v":""}]
[null,"2012-05-01","Viaje",{"v":10200,"d":"10,200"},"Smithfields",{"v":10285,"d":"10,285"},"Oficina","Sí",null,"",{"$f":"Millas","v":85},{"$f":"IF(OR(LEN(Datos[[#This Row],[ODOM. 2]]),Datos[[#This Row],[ODOM. 1]]=\"\"),\"\",IFERROR(Datos[[#This Row],[MILLAS]]/Datos[[#This Row],[GALONES]],\"\"))","v":""},{"$f":"IF(Datos[[#This Row],[MPG]]=\"\",\"\",100*Datos[[#This Row],[COSTO]]/Datos[[#This Row],[MILLAS]])","v":""}]
[null,"2012-05-02","Viaje",{"v":10285,"d":"10,285"},"Oficina",{"v":10450,"d":"10,450"},"Colo Vineyard","Sí",null,"",{"$f":"Millas","v":165},{"$f":"IF(OR(LEN(Datos[[#This Row],[ODOM. 2]]),Datos[[#This Row],[ODOM. 1]]=\"\"),\"\",IFERROR(Datos[[#This Row],[MILLAS]]/Datos[[#This Row],[GALONES]],\"\"))","v":""},{"$f":"IF(Datos[[#This Row],[MPG]]=\"\",\"\",100*Datos[[#This Row],[COSTO]]/Datos[[#This Row],[MILLAS]])","v":""}]
[null,"2012-05-02","Combustible",{"v":10450,"d":"10,450"},"Shell",{"$nulls":3},{"v":11.2,"d":"11.20"},{"v":55.42,"d":"55.42 €"},{"$f":"Millas","v":650},{"$f":"IF(OR(LEN(Datos[[#This Row],[ODOM. 2]]),Datos[[#This Row],[ODOM. 1]]=\"\"),\"\",IFERROR(Datos[[#This Row],[MILLAS]]/Datos[[#This Row],[GALONES]],\"\"))","v":{"v":58.03571428571429,"d":"58.0"}},{"$f":"IF(Datos[[#This Row],[MPG]]=\"\",\"\",100*Datos[[#This Row],[COSTO]]/Datos[[#This Row],[MILLAS]])","v":{"v":8.526153846153846,"d":"8.5"}}]
[null,"2012-05-02","Viaje",{"v":10500,"d":"10,500"},"Colo Vineyard",{"v":10518,"d":"10,518"},"Oficina","Sí",null,"",{"$f":"Millas","v":18},{"$f":"IF(OR(LEN(Datos[[#This Row],[ODOM. 2]]),Datos[[#This Row],[ODOM. 1]]=\"\"),\"\",IFERROR(Datos[[#This Row],[MILLAS]]/Datos[[#This Row],[GALONES]],\"\"))","v":""},{"$f":"IF(Datos[[#This Row],[MPG]]=\"\",\"\",100*Datos[[#This Row],[COSTO]]/Datos[[#This Row],[MILLAS]])","v":""}]
[null,"2012-05-03","Viaje",{"v":10518,"d":"10,518"},"Oficina",{"v":10745,"d":"10,745"},"Oficina","Sí",null,"",{"$f":"Millas","v":227},{"$f":"IF(OR(LEN(Datos[[#This Row],[ODOM. 2]]),Datos[[#This Row],[ODOM. 1]]=\"\"),\"\",IFERROR(Datos[[#This Row],[MILLAS]]/Datos[[#This Row],[GALONES]],\"\"))","v":""},{"$f":"IF(Datos[[#This Row],[MPG]]=\"\",\"\",100*Datos[[#This Row],[COSTO]]/Datos[[#This Row],[MILLAS]])","v":""}]
[null,"2012-05-04","Combustible",{"v":10745,"d":"10,745"},"Chevron - Main St",{"$nulls":3},{"v":16.6,"d":"16.60"},{"v":69.24,"d":"69.24 €"},{"$f":"Millas","v":295},{"$f":"IF(OR(LEN(Datos[[#This Row],[ODOM. 2]]),Datos[[#This Row],[ODOM. 1]]=\"\"),\"\",IFERROR(Datos[[#This Row],[MILLAS]]/Datos[[#This Row],[GALONES]],\"\"))","v":{"v":17.771084337349397,"d":"17.8"}},{"$f":"IF(Datos[[#This Row],[MPG]]=\"\",\"\",100*Datos[[#This Row],[COSTO]]/Datos[[#This Row],[MILLAS]])","v":{"v":23.471186440677965,"d":"23.5"}}]
[null,"2012-05-04","Viaje",{"v":10745,"d":"10,745"},"Oficina",{"v":10800,"d":"10,800"},"Porterville","Sí",null,"",{"$f":"Millas","v":55},{"$f":"IF(OR(LEN(Datos[[#This Row],[ODOM. 2]]),Datos[[#This Row],[ODOM. 1]]=\"\"),\"\",IFERROR(Datos[[#This Row],[MILLAS]]/Datos[[#This Row],[GALONES]],\"\"))","v":""},{"$f":"IF(Datos[[#This Row],[MPG]]=\"\",\"\",100*Datos[[#This Row],[COSTO]]/Datos[[#This Row],[MILLAS]])","v":""}]
[null,"2012-05-04","Viaje",{"v":10800,"d":"10,800"},"Porterville",{"v":10875,"d":"10,875"},"Oficina","Sí",null,"",{"$f":"Millas","v":75},{"$f":"IF(OR(LEN(Datos[[#This Row],[ODOM. 2]]),Datos[[#This Row],[ODOM. 1]]=\"\"),\"\",IFERROR(Datos[[#This Row],[MILLAS]]/Datos[[#This Row],[GALONES]],\"\"))","v":""},{"$f":"IF(Datos[[#This Row],[MPG]]=\"\",\"\",100*Datos[[#This Row],[COSTO]]/Datos[[#This Row],[MILLAS]])","v":""}]
[null,"2012-05-07","Viaje",{"v":10875,"d":"10,875"},"Oficina",{"v":10921,"d":"10,921"},"Cherry Street","Sí",null,"",{"$f":"Millas","v":46},{"$f":"IF(OR(LEN(Datos[[#This Row],[ODOM. 2]]),Datos[[#This Row],[ODOM. 1]]=\"\"),\"\",IFERROR(Datos[[#This Row],[MILLAS]]/Datos[[#This Row],[GALONES]],\"\"))","v":""},{"$f":"IF(Datos[[#This Row],[MPG]]=\"\",\"\",100*Datos[[#This Row],[COSTO]]/Datos[[#This Row],[MILLAS]])","v":""}]
[null,"2012-05-07","Viaje",{"v":10921,"d":"10,921"},"Smithfields",{"v":10969,"d":"10,969"},"Oficina","Sí",null,"",{"$f":"Millas","v":48},{"$f":"IF(OR(LEN(Datos[[#This Row],[ODOM. 2]]),Datos[[#This Row],[ODOM. 1]]=\"\"),\"\",IFERROR(Datos[[#This Row],[MILLAS]]/Datos[[#This Row],[GALONES]],\"\"))","v":""},{"$f":"IF(Datos[[#This Row],[MPG]]=\"\",\"\",100*Datos[[#This Row],[COSTO]]/Datos[[#This Row],[MILLAS]])","v":""}]
[null,"2012-05-09","Viaje",{"v":10969,"d":"10,969"},"Oficina",{"v":11000,"d":"11,000"},"Riverside","Sí",null,"",{"$f":"Millas","v":31},{"$f":"IF(OR(LEN(Datos[[#This Row],[ODOM. 2]]),Datos[[#This Row],[ODOM. 1]]=\"\"),\"\",IFERROR(Datos[[#This Row],[MILLAS]]/Datos[[#This Row],[GALONES]],\"\"))","v":""},{"$f":"IF(Datos[[#This Row],[MPG]]=\"\",\"\",100*Datos[[#This Row],[COSTO]]/Datos[[#This Row],[MILLAS]])","v":""}]
[null,"2012-05-09","Viaje",{"v":11000,"d":"11,000"},"Riverside",{"v":11100,"d":"11,100"},"Inicio","No",null,"",{"$f":"Millas","v":100},{"$f":"IF(OR(LEN(Datos[[#This Row],[ODOM. 2]]),Datos[[#This Row],[ODOM. 1]]=\"\"),\"\",IFERROR(Datos[[#This Row],[MILLAS]]/Datos[[#This Row],[GALONES]],\"\"))","v":""},{"$f":"IF(Datos[[#This Row],[MPG]]=\"\",\"\",100*Datos[[#This Row],[COSTO]]/Datos[[#This Row],[MILLAS]])","v":""}]

{"sheet":"Cálculos","index":2,"n_rows":69,"n_cols":13,"rows_kept":69,"hidden":true}
["*** Esta hoja debe permanecer oculta ***"]
[]
[]
[]
[]
[{"$nulls":8},{"$f":"OFFSET(I9,,segundoeje=\"costo de combustible\")","v":"¢/Mile"}]
[{"$nulls":12},2]
[{"$nulls":7},"Viaje","Combustible","Combustible",null,"Segundo eje:  ",{"$f":"REPT(\"MPG\",M7=1)&REPT(\"Costo De Combustible\",M7=2)","v":"Costo De Combustible"}]
[{"$nulls":7},"Millas conducidas","MPG","¢/Mile"]
[null,null,"Millas reembolsables:  ",{"$f":"SUMIFS(Datos[MILLAS],Datos[REMBOLSAR],\"Sí\",Datos[FECHA],\">=\"&Inicioperiodo,Datos[FECHA],\"<=\"&Finperiodo)","v":820},null,1,{"$f":"Inicioperiodo","v":"2012-05-01"},{"$f":"SUMIFS(Datos[MILLAS],Datos[FECHA],G10,Datos[ACTIVIDAD],$H$8)","v":162},{"$f":"IFERROR(AVERAGEIFS(Datos[MPG],Datos[FECHA],G10,Datos[ACTIVIDAD],$I$8),NA())","v":{"$error":"#N/A"}},{"$f":"IFERROR(AVERAGEIFS(Datos[¢/MILE],Datos[FECHA],G10,Datos[ACTIVIDAD],$J$8),NA())","v":{"$error":"#N/A"}}]
[null,null,"Reembolso total:  ",{"$f":"D10*ReimbursementPerMile/100","v":{"v":442.8,"d":"442.80 €"}},null,2,{"$f":"G10+1","v":"2012-05-02"},{"$f":"SUMIFS(Datos[MILLAS],Datos[FECHA],G11,Datos[ACTIVIDAD],$H$8)","v":183},{"$f":"IFERROR(AVERAGEIFS(Datos[MPG],Datos[FECHA],G11,Datos[ACTIVIDAD],$I$8),NA())","v":{"v":58.03571428571429,"d":"58.0"}},{"$f":"IFERROR(AVERAGEIFS(Datos[¢/MILE],Datos[FECHA],G11,Datos[ACTIVIDAD],$J$8),NA())","v":{"v":8.526153846153846,"d":"8.5"}}]
[{"$nulls":5},3,"2012-05-03",{"$f":"SUMIFS(Datos[MILLAS],Datos[FECHA],G12,Datos[ACTIVIDAD],$H$8)","v":227},{"$f":"IFERROR(AVERAGEIFS(Datos[MPG],Datos[FECHA],G12,Datos[ACTIVIDAD],$I$8),NA())","v":{"$error":"#N/A"}},{"$f":"IFERROR(AVERAGEIFS(Datos[¢/MILE],Datos[FECHA],G12,Datos[ACTIVIDAD],$J$8),NA())","v":{"$error":"#N/A"}}]
[{"$nulls":5},4,"2012-05-04",{"$f":"SUMIFS(Datos[MILLAS],Datos[FECHA],G13,Datos[ACTIVIDAD],$H$8)","v":130},{"$f":"IFERROR(AVERAGEIFS(Datos[MPG],Datos[FECHA],G13,Datos[ACTIVIDAD],$I$8),NA())","v":{"v":17.771084337349397,"d":"17.8"}},{"$f":"IFERROR(AVERAGEIFS(Datos[¢/MILE],Datos[FECHA],G13,Datos[ACTIVIDAD],$J$8),NA())","v":{"v":23.471186440677965,"d":"23.5"}}]
[{"$nulls":5},5,"2012-05-05",{"$f":"SUMIFS(Datos[MILLAS],Datos[FECHA],G14,Datos[ACTIVIDAD],$H$8)","v":0},{"$f":"IFERROR(AVERAGEIFS(Datos[MPG],Datos[FECHA],G14,Datos[ACTIVIDAD],$I$8),NA())","v":{"$error":"#N/A"}},{"$f":"IFERROR(AVERAGEIFS(Datos[¢/MILE],Datos[FECHA],G14,Datos[ACTIVIDAD],$J$8),NA())","v":{"$error":"#N/A"}}]
[{"$nulls":5},6,"2012-05-06",{"$f":"SUMIFS(Datos[MILLAS],Datos[FECHA],G15,Datos[ACTIVIDAD],$H$8)","v":0},{"$f":"IFERROR(AVERAGEIFS(Datos[MPG],Datos[FECHA],G15,Datos[ACTIVIDAD],$I$8),NA())","v":{"$error":"#N/A"}},{"$f":"IFERROR(AVERAGEIFS(Datos[¢/MILE],Datos[FECHA],G15,Datos[ACTIVIDAD],$J$8),NA())","v":{"$error":"#N/A"}}]
[{"$nulls":5},7,"2012-05-07",{"$f":"SUMIFS(Datos[MILLAS],Datos[FECHA],G16,Datos[ACTIVIDAD],$H$8)","v":94},{"$f":"IFERROR(AVERAGEIFS(Datos[MPG],Datos[FECHA],G16,Datos[ACTIVIDAD],$I$8),NA())","v":{"$error":"#N/A"}},{"$f":"IFERROR(AVERAGEIFS(Datos[¢/MILE],Datos[FECHA],G16,Datos[ACTIVIDAD],$J$8),NA())","v":{"$error":"#N/A"}}]
[{"$nulls":5},8,"2012-05-08",{"$f":"SUMIFS(Datos[MILLAS],Datos[FECHA],G17,Datos[ACTIVIDAD],$H$8)","v":0},{"$f":"IFERROR(AVERAGEIFS(Datos[MPG],Datos[FECHA],G17,Datos[ACTIVIDAD],$I$8),NA())","v":{"$error":"#N/A"}},{"$f":"IFERROR(AVERAGEIFS(Datos[¢/MILE],Datos[FECHA],G17,Datos[ACTIVIDAD],$J$8),NA())","v":{"$error":"#N/A"}}]
[{"$nulls":5},9,"2012-05-09",{"$f":"SUMIFS(Datos[MILLAS],Datos[FECHA],G18,Datos[ACTIVIDAD],$H$8)","v":131},{"$f":"IFERROR(AVERAGEIFS(Datos[MPG],Datos[FECHA],G18,Datos[ACTIVIDAD],$I$8),NA())","v":{"$error":"#N/A"}},{"$f":"IFERROR(AVERAGEIFS(Datos[¢/MILE],Datos[FECHA],G18,Datos[ACTIVIDAD],$J$8),NA())","v":{"$error":"#N/A"}}]
[{"$nulls":5},10,"2012-05-10",{"$f":"SUMIFS(Datos[MILLAS],Datos[FECHA],G19,Datos[ACTIVIDAD],$H$8)","v":0},{"$f":"IFERROR(AVERAGEIFS(Datos[MPG],Datos[FECHA],G19,Datos[ACTIVIDAD],$I$8),NA())","v":{"$error":"#N/A"}},{"$f":"IFERROR(AVERAGEIFS(Datos[¢/MILE],Datos[FECHA],G19,Datos[ACTIVIDAD],$J$8),NA())","v":{"$error":"#N/A"}}]
[{"$nulls":5},11,"2012-05-11",{"$f":"SUMIFS(Datos[MILLAS],Datos[FECHA],G20,Datos[ACTIVIDAD],$H$8)","v":0},{"$f":"IFERROR(AVERAGEIFS(Datos[MPG],Datos[FECHA],G20,Datos[ACTIVIDAD],$I$8),NA())","v":{"$error":"#N/A"}},{"$f":"IFERROR(AVERAGEIFS(Datos[¢/MILE],Datos[FECHA],G20,Datos[ACTIVIDAD],$J$8),NA())","v":{"$error":"#N/A"}}]
[{"$nulls":5},12,"2012-05-12",{"$f":"SUMIFS(Datos[MILLAS],Datos[FECHA],G21,Datos[ACTIVIDAD],$H$8)","v":0},{"$f":"IFERROR(AVERAGEIFS(Datos[MPG],Datos[FECHA],G21,Datos[ACTIVIDAD],$I$8),NA())","v":{"$error":"#N/A"}},{"$f":"IFERROR(AVERAGEIFS(Datos[¢/MILE],Datos[FECHA],G21,Datos[ACTIVIDAD],$J$8),NA())","v":{"$error":"#N/A"}}]
[{"$nulls":5},13,"2012-05-13",{"$f":"SUMIFS(Datos[MILLAS],Datos[FECHA],G22,Datos[ACTIVIDAD],$H$8)","v":0},{"$f":"IFERROR(AVERAGEIFS(Datos[MPG],Datos[FECHA],G22,Datos[ACTIVIDAD],$I$8),NA())","v":{"$error":"#N/A"}},{"$f":"IFERROR(AVERAGEIFS(Datos[¢/MILE],Datos[FECHA],G22,Datos[ACTIVIDAD],$J$8),NA())","v":{"$error":"#N/A"}}]
[{"$nulls":5},14,"2012-05-14",{"$f":"SUMIFS(Datos[MILLAS],Datos[FECHA],G23,Datos[ACTIVIDAD],$H$8)","v":0},{"$f":"IFERROR(AVERAGEIFS(Datos[MPG],Datos[FECHA],G23,Datos[ACTIVIDAD],$I$8),NA())","v":{"$error":"#N/A"}},{"$f":"IFERROR(AVERAGEIFS(Datos[¢/MILE],Datos[FECHA],G23,Datos[ACTIVIDAD],$J$8),NA())","v":{"$error":"#N/A"}}]
[{"$nulls":5},15,"2012-05-15",{"$f":"SUMIFS(Datos[MILLAS],Datos[FECHA],G24,Datos[ACTIVIDAD],$H$8)","v":0},{"$f":"IFERROR(AVERAGEIFS(Datos[MPG],Datos[FECHA],G24,Datos[ACTIVIDAD],$I$8),NA())","v":{"$error":"#N/A"}},{"$f":"IFERROR(AVERAGEIFS(Datos[¢/MILE],Datos[FECHA],G24,Datos[ACTIVIDAD],$J$8),NA())","v":{"$error":"#N/A"}}]
[{"$nulls":5},16,"2012-05-16",{"$f":"SUMIFS(Datos[MILLAS],Datos[FECHA],G25,Datos[ACTIVIDAD],$H$8)","v":0},{"$f":"IFERROR(AVERAGEIFS(Datos[MPG],Datos[FECHA],G25,Datos[ACTIVIDAD],$I$8),NA())","v":{"$error":"#N/A"}},{"$f":"IFERROR(AVERAGEIFS(Datos[¢/MILE],Datos[FECHA],G25,Datos[ACTIVIDAD],$J$8),NA())","v":{"$error":"#N/A"}}]
[{"$nulls":5},17,"2012-05-17",{"$f":"SUMIFS(Datos[MILLAS],Datos[FECHA],G26,Datos[ACTIVIDAD],$H$8)","v":0},{"$f":"IFERROR(AVERAGEIFS(Datos[MPG],Datos[FECHA],G26,Datos[ACTIVIDAD],$I$8),NA())","v":{"$error":"#N/A"}},{"$f":"IFERROR(AVERAGEIFS(Datos[¢/MILE],Datos[FECHA],G26,Datos[ACTIVIDAD],$J$8),NA())","v":{"$error":"#N/A"}}]
[{"$nulls":5},18,"2012-05-18",{"$f":"SUMIFS(Datos[MILLAS],Datos[FECHA],G27,Datos[ACTIVIDAD],$H$8)","v":0},{"$f":"IFERROR(AVERAGEIFS(Datos[MPG],Datos[FECHA],G27,Datos[ACTIVIDAD],$I$8),NA())","v":{"$error":"#N/A"}},{"$f":"IFERROR(AVERAGEIFS(Datos[¢/MILE],Datos[FECHA],G27,Datos[ACTIVIDAD],$J$8),NA())","v":{"$error":"#N/A"}}]
[{"$nulls":5},19,"2012-05-19",{"$f":"SUMIFS(Datos[MILLAS],Datos[FECHA],G28,Datos[ACTIVIDAD],$H$8)","v":0},{"$f":"IFERROR(AVERAGEIFS(Datos[MPG],Datos[FECHA],G28,Datos[ACTIVIDAD],$I$8),NA())","v":{"$error":"#N/A"}},{"$f":"IFERROR(AVERAGEIFS(Datos[¢/MILE],Datos[FECHA],G28,Datos[ACTIVIDAD],$J$8),NA())","v":{"$error":"#N/A"}}]
[{"$nulls":5},20,"2012-05-20",{"$f":"SUMIFS(Datos[MILLAS],Datos[FECHA],G29,Datos[ACTIVIDAD],$H$8)","v":0},{"$f":"IFERROR(AVERAGEIFS(Datos[MPG],Datos[FECHA],G29,Datos[ACTIVIDAD],$I$8),NA())","v":{"$error":"#N/A"}},{"$f":"IFERROR(AVERAGEIFS(Datos[¢/MILE],Datos[FECHA],G29,Datos[ACTIVIDAD],$J$8),NA())","v":{"$error":"#N/A"}}]
[{"$nulls":5},21,"2012-05-21",{"$f":"SUMIFS(Datos[MILLAS],Datos[FECHA],G30,Datos[ACTIVIDAD],$H$8)","v":0},{"$f":"IFERROR(AVERAGEIFS(Datos[MPG],Datos[FECHA],G30,Datos[ACTIVIDAD],$I$8),NA())","v":{"$error":"#N/A"}},{"$f":"IFERROR(AVERAGEIFS(Datos[¢/MILE],Datos[FECHA],G30,Datos[ACTIVIDAD],$J$8),NA())","v":{"$error":"#N/A"}}]
[{"$nulls":5},22,"2012-05-22",{"$f":"SUMIFS(Datos[MILLAS],Datos[FECHA],G31,Datos[ACTIVIDAD],$H$8)","v":0},{"$f":"IFERROR(AVERAGEIFS(Datos[MPG],Datos[FECHA],G31,Datos[ACTIVIDAD],$I$8),NA())","v":{"$error":"#N/A"}},{"$f":"IFERROR(AVERAGEIFS(Datos[¢/MILE],Datos[FECHA],G31,Datos[ACTIVIDAD],$J$8),NA())","v":{"$error":"#N/A"}}]
[{"$nulls":5},23,"2012-05-23",{"$f":"SUMIFS(Datos[MILLAS],Datos[FECHA],G32,Datos[ACTIVIDAD],$H$8)","v":0},{"$f":"IFERROR(AVERAGEIFS(Datos[MPG],Datos[FECHA],G32,Datos[ACTIVIDAD],$I$8),NA())","v":{"$error":"#N/A"}},{"$f":"IFERROR(AVERAGEIFS(Datos[¢/MILE],Datos[FECHA],G32,Datos[ACTIVIDAD],$J$8),NA())","v":{"$error":"#N/A"}}]
[{"$nulls":5},24,"2012-05-24",{"$f":"SUMIFS(Datos[MILLAS],Datos[FECHA],G33,Datos[ACTIVIDAD],$H$8)","v":0},{"$f":"IFERROR(AVERAGEIFS(Datos[MPG],Datos[FECHA],G33,Datos[ACTIVIDAD],$I$8),NA())","v":{"$error":"#N/A"}},{"$f":"IFERROR(AVERAGEIFS(Datos[¢/MILE],Datos[FECHA],G33,Datos[ACTIVIDAD],$J$8),NA())","v":{"$error":"#N/A"}}]
[{"$nulls":5},25,"2012-05-25",{"$f":"SUMIFS(Datos[MILLAS],Datos[FECHA],G34,Datos[ACTIVIDAD],$H$8)","v":0},{"$f":"IFERROR(AVERAGEIFS(Datos[MPG],Datos[FECHA],G34,Datos[ACTIVIDAD],$I$8),NA())","v":{"$error":"#N/A"}},{"$f":"IFERROR(AVERAGEIFS(Datos[¢/MILE],Datos[FECHA],G34,Datos[ACTIVIDAD],$J$8),NA())","v":{"$error":"#N/A"}}]
[{"$nulls":5},26,"2012-05-26",{"$f":"SUMIFS(Datos[MILLAS],Datos[FECHA],G35,Datos[ACTIVIDAD],$H$8)","v":0},{"$f":"IFERROR(AVERAGEIFS(Datos[MPG],Datos[FECHA],G35,Datos[ACTIVIDAD],$I$8),NA())","v":{"$error":"#N/A"}},{"$f":"IFERROR(AVERAGEIFS(Datos[¢/MILE],Datos[FECHA],G35,Datos[ACTIVIDAD],$J$8),NA())","v":{"$error":"#N/A"}}]
[{"$nulls":5},27,"2012-05-27",{"$f":"SUMIFS(Datos[MILLAS],Datos[FECHA],G36,Datos[ACTIVIDAD],$H$8)","v":0},{"$f":"IFERROR(AVERAGEIFS(Datos[MPG],Datos[FECHA],G36,Datos[ACTIVIDAD],$I$8),NA())","v":{"$error":"#N/A"}},{"$f":"IFERROR(AVERAGEIFS(Datos[¢/MILE],Datos[FECHA],G36,Datos[ACTIVIDAD],$J$8),NA())","v":{"$error":"#N/A"}}]
[{"$nulls":5},28,"2012-05-28",{"$f":"SUMIFS(Datos[MILLAS],Datos[FECHA],G37,Datos[ACTIVIDAD],$H$8)","v":0},{"$f":"IFERROR(AVERAGEIFS(Datos[MPG],Datos[FECHA],G37,Datos[ACTIVIDAD],$I$8),NA())","v":{"$error":"#N/A"}},{"$f":"IFERROR(AVERAGEIFS(Datos[¢/MILE],Datos[FECHA],G37,Datos[ACTIVIDAD],$J$8),NA())","v":{"$error":"#N/A"}}]
[{"$nulls":5},29,"2012-05-29",{"$f":"SUMIFS(Datos[MILLAS],Datos[FECHA],G38,Datos[ACTIVIDAD],$H$8)","v":0},{"$f":"IFERROR(AVERAGEIFS(Datos[MPG],Datos[FECHA],G38,Datos[ACTIVIDAD],$I$8),NA())","v":{"$error":"#N/A"}},{"$f":"IFERROR(AVERAGEIFS(Datos[¢/MILE],Datos[FECHA],G38,Datos[ACTIVIDAD],$J$8),NA())","v":{"$error":"#N/A"}}]
[{"$nulls":5},30,"2012-05-30",{"$f":"SUMIFS(Datos[MILLAS],Datos[FECHA],G39,Datos[ACTIVIDAD],$H$8)","v":0},{"$f":"IFERROR(AVERAGEIFS(Datos[MPG],Datos[FECHA],G39,Datos[ACTIVIDAD],$I$8),NA())","v":{"$error":"#N/A"}},{"$f":"IFERROR(AVERAGEIFS(Datos[¢/MILE],Datos[FECHA],G39,Datos[ACTIVIDAD],$J$8),NA())","v":{"$error":"#N/A"}}]
[{"$nulls":5},31,"2012-05-31",{"$f":"SUMIFS(Datos[MILLAS],Datos[FECHA],G40,Datos[ACTIVIDAD],$H$8)","v":0},{"$f":"IFERROR(AVERAGEIFS(Datos[MPG],Datos[FECHA],G40,Datos[ACTIVIDAD],$I$8),NA())","v":{"$error":"#N/A"}},{"$f":"IFERROR(AVERAGEIFS(Datos[¢/MILE],Datos[FECHA],G40,Datos[ACTIVIDAD],$J$8),NA())","v":{"$error":"#N/A"}}]
[{"$nulls":5},32,"2012-06-01",{"$f":"SUMIFS(Datos[MILLAS],Datos[FECHA],G41,Datos[ACTIVIDAD],$H$8)","v":0},{"$f":"IFERROR(AVERAGEIFS(Datos[MPG],Datos[FECHA],G41,Datos[ACTIVIDAD],$I$8),NA())","v":{"$error":"#N/A"}},{"$f":"IFERROR(AVERAGEIFS(Datos[¢/MILE],Datos[FECHA],G41,Datos[ACTIVIDAD],$J$8),NA())","v":{"$error":"#N/A"}}]
[{"$nulls":5},33,"2012-06-02",{"$f":"SUMIFS(Datos[MILLAS],Datos[FECHA],G42,Datos[ACTIVIDAD],$H$8)","v":0},{"$f":"IFERROR(AVERAGEIFS(Datos[MPG],Datos[FECHA],G42,Datos[ACTIVIDAD],$I$8),NA())","v":{"$error":"#N/A"}},{"$f":"IFERROR(AVERAGEIFS(Datos[¢/MILE],Datos[FECHA],G42,Datos[ACTIVIDAD],$J$8),NA())","v":{"$error":"#N/A"}}]
[{"$nulls":5},34,{"$f":"G42+1","v":"2012-06-03"},{"$f":"SUMIFS(Datos[MILLAS],Datos[FECHA],G43,Datos[ACTIVIDAD],$H$8)","v":0},{"$f":"IFERROR(AVERAGEIFS(Datos[MPG],Datos[FECHA],G43,Datos[ACTIVIDAD],$I$8),NA())","v":{"$error":"#N/A"}},{"$f":"IFERROR(AVERAGEIFS(Datos[¢/MILE],Datos[FECHA],G43,Datos[ACTIVIDAD],$J$8),NA())","v":{"$error":"#N/A"}}]
[{"$nulls":5},35,"2012-06-04",{"$f":"SUMIFS(Datos[MILLAS],Datos[FECHA],G44,Datos[ACTIVIDAD],$H$8)","v":0},{"$f":"IFERROR(AVERAGEIFS(Datos[MPG],Datos[FECHA],G44,Datos[ACTIVIDAD],$I$8),NA())","v":{"$error":"#N/A"}},{"$f":"IFERROR(AVERAGEIFS(Datos[¢/MILE],Datos[FECHA],G44,Datos[ACTIVIDAD],$J$8),NA())","v":{"$error":"#N/A"}}]
[{"$nulls":5},36,"2012-06-05",{"$f":"SUMIFS(Datos[MILLAS],Datos[FECHA],G45,Datos[ACTIVIDAD],$H$8)","v":0},{"$f":"IFERROR(AVERAGEIFS(Datos[MPG],Datos[FECHA],G45,Datos[ACTIVIDAD],$I$8),NA())","v":{"$error":"#N/A"}},{"$f":"IFERROR(AVERAGEIFS(Datos[¢/MILE],Datos[FECHA],G45,Datos[ACTIVIDAD],$J$8),NA())","v":{"$error":"#N/A"}}]
[{"$nulls":5},37,"2012-06-06",{"$f":"SUMIFS(Datos[MILLAS],Datos[FECHA],G46,Datos[ACTIVIDAD],$H$8)","v":0},{"$f":"IFERROR(AVERAGEIFS(Datos[MPG],Datos[FECHA],G46,Datos[ACTIVIDAD],$I$8),NA())","v":{"$error":"#N/A"}},{"$f":"IFERROR(AVERAGEIFS(Datos[¢/MILE],Datos[FECHA],G46,Datos[ACTIVIDAD],$J$8),NA())","v":{"$error":"#N/A"}}]
[{"$nulls":5},38,"2012-06-07",{"$f":"SUMIFS(Datos[MILLAS],Datos[FECHA],G47,Datos[ACTIVIDAD],$H$8)","v":0},{"$f":"IFERROR(AVERAGEIFS(Datos[MPG],Datos[FECHA],G47,Datos[ACTIVIDAD],$I$8),NA())","v":{"$error":"#N/A"}},{"$f":"IFERROR(AVERAGEIFS(Datos[¢/MILE],Datos[FECHA],G47,Datos[ACTIVIDAD],$J$8),NA())","v":{"$error":"#N/A"}}]
[{"$nulls":5},39,"2012-06-08",{"$f":"SUMIFS(Datos[MILLAS],Datos[FECHA],G48,Datos[ACTIVIDAD],$H$8)","v":0},{"$f":"IFERROR(AVERAGEIFS(Datos[MPG],Datos[FECHA],G48,Datos[ACTIVIDAD],$I$8),NA())","v":{"$error":"#N/A"}},{"$f":"IFERROR(AVERAGEIFS(Datos[¢/MILE],Datos[FECHA],G48,Datos[ACTIVIDAD],$J$8),NA())","v":{"$error":"#N/A"}}]
[{"$nulls":5},40,"2012-06-09",{"$f":"SUMIFS(Datos[MILLAS],Datos[FECHA],G49,Datos[ACTIVIDAD],$H$8)","v":0},{"$f":"IFERROR(AVERAGEIFS(Datos[MPG],Datos[FECHA],G49,Datos[ACTIVIDAD],$I$8),NA())","v":{"$error":"#N/A"}},{"$f":"IFERROR(AVERAGEIFS(Datos[¢/MILE],Datos[FECHA],G49,Datos[ACTIVIDAD],$J$8),NA())","v":{"$error":"#N/A"}}]
[{"$nulls":5},41,"2012-06-10",{"$f":"SUMIFS(Datos[MILLAS],Datos[FECHA],G50,Datos[ACTIVIDAD],$H$8)","v":0},{"$f":"IFERROR(AVERAGEIFS(Datos[MPG],Datos[FECHA],G50,Datos[ACTIVIDAD],$I$8),NA())","v":{"$error":"#N/A"}},{"$f":"IFERROR(AVERAGEIFS(Datos[¢/MILE],Datos[FECHA],G50,Datos[ACTIVIDAD],$J$8),NA())","v":{"$error":"#N/A"}}]
[{"$nulls":5},42,"2012-06-11",{"$f":"SUMIFS(Datos[MILLAS],Datos[FECHA],G51,Datos[ACTIVIDAD],$H$8)","v":0},{"$f":"IFERROR(AVERAGEIFS(Datos[MPG],Datos[FECHA],G51,Datos[ACTIVIDAD],$I$8),NA())","v":{"$error":"#N/A"}},{"$f":"IFERROR(AVERAGEIFS(Datos[¢/MILE],Datos[FECHA],G51,Datos[ACTIVIDAD],$J$8),NA())","v":{"$error":"#N/A"}}]
[{"$nulls":5},43,"2012-06-12",{"$f":"SUMIFS(Datos[MILLAS],Datos[FECHA],G52,Datos[ACTIVIDAD],$H$8)","v":0},{"$f":"IFERROR(AVERAGEIFS(Datos[MPG],Datos[FECHA],G52,Datos[ACTIVIDAD],$I$8),NA())","v":{"$error":"#N/A"}},{"$f":"IFERROR(AVERAGEIFS(Datos[¢/MILE],Datos[FECHA],G52,Datos[ACTIVIDAD],$J$8),NA())","v":{"$error":"#N/A"}}]
[{"$nulls":5},44,"2012-06-13",{"$f":"SUMIFS(Datos[MILLAS],Datos[FECHA],G53,Datos[ACTIVIDAD],$H$8)","v":0},{"$f":"IFERROR(AVERAGEIFS(Datos[MPG],Datos[FECHA],G53,Datos[ACTIVIDAD],$I$8),NA())","v":{"$error":"#N/A"}},{"$f":"IFERROR(AVERAGEIFS(Datos[¢/MILE],Datos[FECHA],G53,Datos[ACTIVIDAD],$J$8),NA())","v":{"$error":"#N/A"}}]
[{"$nulls":5},45,"2012-06-14",{"$f":"SUMIFS(Datos[MILLAS],Datos[FECHA],G54,Datos[ACTIVIDAD],$H$8)","v":0},{"$f":"IFERROR(AVERAGEIFS(Datos[MPG],Datos[FECHA],G54,Datos[ACTIVIDAD],$I$8),NA())","v":{"$error":"#N/A"}},{"$f":"IFERROR(AVERAGEIFS(Datos[¢/MILE],Datos[FECHA],G54,Datos[ACTIVIDAD],$J$8),NA())","v":{"$error":"#N/A"}}]
[{"$nulls":5},46,"2012-06-15",{"$f":"SUMIFS(Datos[MILLAS],Datos[FECHA],G55,Datos[ACTIVIDAD],$H$8)","v":0},{"$f":"IFERROR(AVERAGEIFS(Datos[MPG],Datos[FECHA],G55,Datos[ACTIVIDAD],$I$8),NA())","v":{"$error":"#N/A"}},{"$f":"IFERROR(AVERAGEIFS(Datos[¢/MILE],Datos[FECHA],G55,Datos[ACTIVIDAD],$J$8),NA())","v":{"$error":"#N/A"}}]
[{"$nulls":5},47,"2012-06-16",{"$f":"SUMIFS(Datos[MILLAS],Datos[FECHA],G56,Datos[ACTIVIDAD],$H$8)","v":0},{"$f":"IFERROR(AVERAGEIFS(Datos[MPG],Datos[FECHA],G56,Datos[ACTIVIDAD],$I$8),NA())","v":{"$error":"#N/A"}},{"$f":"IFERROR(AVERAGEIFS(Datos[¢/MILE],Datos[FECHA],G56,Datos[ACTIVIDAD],$J$8),NA())","v":{"$error":"#N/A"}}]
[{"$nulls":5},48,"2012-06-17",{"$f":"SUMIFS(Datos[MILLAS],Datos[FECHA],G57,Datos[ACTIVIDAD],$H$8)","v":0},{"$f":"IFERROR(AVERAGEIFS(Datos[MPG],Datos[FECHA],G57,Datos[ACTIVIDAD],$I$8),NA())","v":{"$error":"#N/A"}},{"$f":"IFERROR(AVERAGEIFS(Datos[¢/MILE],Datos[FECHA],G57,Datos[ACTIVIDAD],$J$8),NA())","v":{"$error":"#N/A"}}]
[{"$nulls":5},49,"2012-06-18",{"$f":"SUMIFS(Datos[MILLAS],Datos[FECHA],G58,Datos[ACTIVIDAD],$H$8)","v":0},{"$f":"IFERROR(AVERAGEIFS(Datos[MPG],Datos[FECHA],G58,Datos[ACTIVIDAD],$I$8),NA())","v":{"$error":"#N/A"}},{"$f":"IFERROR(AVERAGEIFS(Datos[¢/MILE],Datos[FECHA],G58,Datos[ACTIVIDAD],$J$8),NA())","v":{"$error":"#N/A"}}]
[{"$nulls":5},50,"2012-06-19",{"$f":"SUMIFS(Datos[MILLAS],Datos[FECHA],G59,Datos[ACTIVIDAD],$H$8)","v":0},{"$f":"IFERROR(AVERAGEIFS(Datos[MPG],Datos[FECHA],G59,Datos[ACTIVIDAD],$I$8),NA())","v":{"$error":"#N/A"}},{"$f":"IFERROR(AVERAGEIFS(Datos[¢/MILE],Datos[FECHA],G59,Datos[ACTIVIDAD],$J$8),NA())","v":{"$error":"#N/A"}}]
[{"$nulls":5},51,"2012-06-20",{"$f":"SUMIFS(Datos[MILLAS],Datos[FECHA],G60,Datos[ACTIVIDAD],$H$8)","v":0},{"$f":"IFERROR(AVERAGEIFS(Datos[MPG],Datos[FECHA],G60,Datos[ACTIVIDAD],$I$8),NA())","v":{"$error":"#N/A"}},{"$f":"IFERROR(AVERAGEIFS(Datos[¢/MILE],Datos[FECHA],G60,Datos[ACTIVIDAD],$J$8),NA())","v":{"$error":"#N/A"}}]
[{"$nulls":5},52,"2012-06-21",{"$f":"SUMIFS(Datos[MILLAS],Datos[FECHA],G61,Datos[ACTIVIDAD],$H$8)","v":0},{"$f":"IFERROR(AVERAGEIFS(Datos[MPG],Datos[FECHA],G61,Datos[ACTIVIDAD],$I$8),NA())","v":{"$error":"#N/A"}},{"$f":"IFERROR(AVERAGEIFS(Datos[¢/MILE],Datos[FECHA],G61,Datos[ACTIVIDAD],$J$8),NA())","v":{"$error":"#N/A"}}]
[{"$nulls":5},53,"2012-06-22",{"$f":"SUMIFS(Datos[MILLAS],Datos[FECHA],G62,Datos[ACTIVIDAD],$H$8)","v":0},{"$f":"IFERROR(AVERAGEIFS(Datos[MPG],Datos[FECHA],G62,Datos[ACTIVIDAD],$I$8),NA())","v":{"$error":"#N/A"}},{"$f":"IFERROR(AVERAGEIFS(Datos[¢/MILE],Datos[FECHA],G62,Datos[ACTIVIDAD],$J$8),NA())","v":{"$error":"#N/A"}}]
[{"$nulls":5},54,"2012-06-23",{"$f":"SUMIFS(Datos[MILLAS],Datos[FECHA],G63,Datos[ACTIVIDAD],$H$8)","v":0},{"$f":"IFERROR(AVERAGEIFS(Datos[MPG],Datos[FECHA],G63,Datos[ACTIVIDAD],$I$8),NA())","v":{"$error":"#N/A"}},{"$f":"IFERROR(AVERAGEIFS(Datos[¢/MILE],Datos[FECHA],G63,Datos[ACTIVIDAD],$J$8),NA())","v":{"$error":"#N/A"}}]
[{"$nulls":5},55,"2012-06-24",{"$f":"SUMIFS(Datos[MILLAS],Datos[FECHA],G64,Datos[ACTIVIDAD],$H$8)","v":0},{"$f":"IFERROR(AVERAGEIFS(Datos[MPG],Datos[FECHA],G64,Datos[ACTIVIDAD],$I$8),NA())","v":{"$error":"#N/A"}},{"$f":"IFERROR(AVERAGEIFS(Datos[¢/MILE],Datos[FECHA],G64,Datos[ACTIVIDAD],$J$8),NA())","v":{"$error":"#N/A"}}]
[{"$nulls":5},56,"2012-06-25",{"$f":"SUMIFS(Datos[MILLAS],Datos[FECHA],G65,Datos[ACTIVIDAD],$H$8)","v":0},{"$f":"IFERROR(AVERAGEIFS(Datos[MPG],Datos[FECHA],G65,Datos[ACTIVIDAD],$I$8),NA())","v":{"$error":"#N/A"}},{"$f":"IFERROR(AVERAGEIFS(Datos[¢/MILE],Datos[FECHA],G65,Datos[ACTIVIDAD],$J$8),NA())","v":{"$error":"#N/A"}}]
[{"$nulls":5},57,"2012-06-26",{"$f":"SUMIFS(Datos[MILLAS],Datos[FECHA],G66,Datos[ACTIVIDAD],$H$8)","v":0},{"$f":"IFERROR(AVERAGEIFS(Datos[MPG],Datos[FECHA],G66,Datos[ACTIVIDAD],$I$8),NA())","v":{"$error":"#N/A"}},{"$f":"IFERROR(AVERAGEIFS(Datos[¢/MILE],Datos[FECHA],G66,Datos[ACTIVIDAD],$J$8),NA())","v":{"$error":"#N/A"}}]
[{"$nulls":5},58,"2012-06-27",{"$f":"SUMIFS(Datos[MILLAS],Datos[FECHA],G67,Datos[ACTIVIDAD],$H$8)","v":0},{"$f":"IFERROR(AVERAGEIFS(Datos[MPG],Datos[FECHA],G67,Datos[ACTIVIDAD],$I$8),NA())","v":{"$error":"#N/A"}},{"$f":"IFERROR(AVERAGEIFS(Datos[¢/MILE],Datos[FECHA],G67,Datos[ACTIVIDAD],$J$8),NA())","v":{"$error":"#N/A"}}]
[{"$nulls":5},59,"2012-06-28",{"$f":"SUMIFS(Datos[MILLAS],Datos[FECHA],G68,Datos[ACTIVIDAD],$H$8)","v":0},{"$f":"IFERROR(AVERAGEIFS(Datos[MPG],Datos[FECHA],G68,Datos[ACTIVIDAD],$I$8),NA())","v":{"$error":"#N/A"}},{"$f":"IFERROR(AVERAGEIFS(Datos[¢/MILE],Datos[FECHA],G68,Datos[ACTIVIDAD],$J$8),NA())","v":{"$error":"#N/A"}}]
[{"$nulls":5},60,"2012-06-29",{"$f":"SUMIFS(Datos[MILLAS],Datos[FECHA],G69,Datos[ACTIVIDAD],$H$8)","v":0},{"$f":"IFERROR(AVERAGEIFS(Datos[MPG],Datos[FECHA],G69,Datos[ACTIVIDAD],$I$8),NA())","v":{"$error":"#N/A"}},{"$f":"IFERROR(AVERAGEIFS(Datos[¢/MILE],Datos[FECHA],G69,Datos[ACTIVIDAD],$J$8),NA())","v":{"$error":"#N/A"}}]